[Event "Chinese Championship-B Women 2024"]
[Site "Liaocheng"]
[Date "2024.04.25"]
[Round "9.7"]
[White "Wang, Xiaoyan"]
[Black "Guo, Hanxi"]
[Result "1/2-1/2"]
[ECO "E47"]
[WhiteElo "1932"]
[BlackElo "1699"]
[Annotator "NA RC"]
[PlyCount "82"]
[EventDate "2024.04.24"]
[EventType "swiss"]
[EventCountry "CHN"]
[SourceTitle "playchess.com"]
[Source "ChessBase"]
[SourceQuality "1"]
[TimeControl "5400+30"]

1. d4 {[%emt 0:00:02]} Nf6 {[%emt 0:02:19]} 2. c4 {[%emt 0:00:03]} e6 {[%emt 0:00:07]} 3. Nc3 {[%emt 0:00:04]} Bb4 {[%emt 0:00:32]} 4. e3 {[%emt 0:00:06]} c5 {[%emt 0:00:05]} 5. Bd3 {[%emt 0:00:11]} b6 {[%emt 0:00:13]} 6. Nge2 {[%emt 0:01:53]} Bb7 {[%emt 0:00:21]} 7. O-O {[%emt 0:00:21]} O-O {[%emt 0:00:14]} 8. a3 {[%emt 0:02:55]} Bxc3 {[%emt 0:01:00]} 9. Nxc3 {[%emt 0:00:12]} d6 {[%emt 0:13:13]} 10. f4 {[%emt 0:03:42] E47: Nimzo-Indian: Rubinstein: 5 Bd3 without ...d5.} Nbd7 {[%emt 0:03:45]} 11. Bd2 {[%emt 0:01:23]} d5 {[%emt 1:14:11]} 12. f5 {[%emt 0:12:13]} e5 {[%emt 0:00:00]} 13. Nxd5 $1 {[%emt 0:02:58]} exd4 {[%emt 0:00:00]} 14. exd4 {[%emt 0:02:09]} Nxd5 {[%emt 0:00:00]} 15. cxd5 {[%emt 0:00:22]} Nf6 {[%emt 0:00:00]} 16. Bc4 {[%emt 0:23:56]} Bxd5 {[%emt 0:00:00]} (16... Nxd5 17. dxc5 bxc5 18. Rc1) 17. Bxd5 {[%emt 0:00:57]} Qxd5 {[%emt 0:00:00]} 18. Bg5 {[%emt 0:00:42]} Ne4 {[%emt 0:00:00]} 19. Be3 {[%emt 0:00:35]} cxd4 {[%emt 0:00:00]} 20. Qxd4 {[%emt 0:00:30]} Qxd4 21. Bxd4 {[%emt 0:00:00]} Nd2 {[%emt 0:00:00]} 22. Rfe1 {[%emt 0:01:35]} Nb3 {[%emt 0:00:17]} 23. Rad1 {[%emt 0:00:07]} Nxd4 {[%emt 0:00:59]} 24. Rxd4 {[%emt 0:00:04]} Rac8 {[%emt 0:03:31]} 25. Rd7 {[%emt 0:03:38]} Rc5 {[%emt 0:00:59]} 26. f6 {[%emt 0:10:56]} a5 {[%emt 0:01:02]} 27. fxg7 {[%emt 0:00:20]} Kxg7 {[%emt 0:00:04]} 28. Rb7 {[%emt 0:02:58]} Rb5 {[%emt 0:00:49]} 29. Re2 {[%emt 0:01:31]} Rc8 {[%emt 0:00:39]} 30. h3 {[%emt 0:00:54]} Rc6 {[%emt 0:00:18]} 31. Rd7 {[%emt 0:02:44]} Rf6 {[%emt 0:00:48]} 32. Rd3 {[%emt 0:02:58]} Rc6 {[%emt 0:00:31]} 33. Kh2 {[%emt 0:00:42]} Rg6 {[%emt 0:00:23]} 34. Rf2 {[%emt 0:01:15]} Re6 {[%emt 0:00:36]} 35. Rg3+ {[%emt 0:01:09]} Kf8 {[%emt 0:00:31]} 36. Rgf3 {[%emt 0:00:14]} Re7 {[%emt 0:00:05]} 37. g4 {[%emt 0:00:50]} Kg7 {[%emt 0:00:41]} 38. Kg3 {[%emt 0:00:30]} Rbe5 {[%emt 0:00:13]} 39. h4 {[%emt 0:01:24]} Re3 {[%emt 0:00:29]} 40. Rxe3 {[%emt 0:02:41]} Rxe3+ {[%emt 0:00:04]} 41. Rf3 {[%emt 0:01:07]} Re5 $14 {[%emt 0:00:59]} 1/2-1/2

[Event "Chinese Championship-B Women 2024"]
[Site "Liaocheng"]
[Date "2024.04.25"]
[Round "9.8"]
[White "Shi, Yige"]
[Black "Chu, Ruotong"]
[Result "0-1"]
[ECO "D72"]
[WhiteElo "1794"]
[BlackElo "2124"]
[Annotator "TA"]
[PlyCount "108"]
[EventDate "2024.04.24"]
[EventType "swiss"]
[EventCountry "CHN"]
[SourceTitle "playchess.com"]
[Source "ChessBase"]
[SourceQuality "1"]
[TimeControl "5400+30"]

{[%evp 14,108,11,14,0,24,99,102,98,104,172,152,156,121,112,126,159,155,162,87,85,59,52,55,34,44,56,60,68,21,22,13,11,0,0,0,0,0,0,0,0,-31,-27,-125,-128,-129,-123,-116,-121,-121,-116,-116,-116,-116,-116,-116,-116,-116,-116,-116,-116,-116,-116,-116,-116,-116,-116,-116,-116,-116,-116,-116,-116,-116,-116,-116,-116,-116,-116,-116,-116,-29969,-29970,-29972,-29973,-29973,-29974,-29974,-29975,-29975,-29976,-29976,-29977,-29977,-29978,-29978,-29977]} 1. d4 {[%emt 0:00:02]} Nf6 {[%emt 0:07:31]} 2. c4 {[%emt 0:00:06]} g6 {[%emt 0:00:11]} 3. g3 {[%emt 0:00:04]} Bg7 {[%emt 0:01:21]} 4. Bg2 {[%emt 0:00:05]} d5 {[%emt 0:01:04]} 5. cxd5 {[%emt 0:00:07]} Nxd5 {[%emt 0:00:05]} 6. e4 {[%emt 0:00:05]} Nb6 {[%emt 0:00:51]} 7. Ne2 {[%emt 0:00:08]} c5 {[%emt 0:07:57]} 8. d5 {[%emt 0:02:25]} O-O {[%emt 0:01:39]} 9. O-O {[%emt 0:02:25]} f5 {[%emt 1:14:21]} (9... Na6 $11 {remains equal.}) 10. Nbc3 {[%emt 0:10:16]} Na6 {[%emt 0:00:00] White is better.} 11. Nf4 {[%emt 0:06:47]} Qd6 {[%emt 0:00:00]} (11... Nc7 $16 {was called for.}) 12. Qe2 {[%emt 0:09:00]} Nc7 {[%emt 0:00:00]} 13. Re1 {[%emt 0:05:56] e5 is the strong threat.} e5 {[%emt 0:00:00]} 14. dxe6 {[%emt 0:01:58]} Nxe6 {[%emt 0:00:00]} 15. Nb5 {[%emt 0:01:54] Inhibits Nd4.} Qe5 {[%emt 0:00:00]} 16. Nxe6 {[%emt 0:02:30]} (16. Nd3 $18 Qb8 17. Nf4 (17. exf5 Rxf5 18. Bh3 Rf6 $16)) 16... Bxe6 $16 {[%emt 0:00:00]} 17. Bf4 {[%emt 0:00:17]} Qxb2 {[%emt 0:00:00]} 18. Qxb2 {[%emt 0:01:47]} Bxb2 {[%emt 0:00:00]} 19. Rab1 {[%emt 0:01:12]} Na4 {[%emt 0:00:00]} 20. Nc7 {[%emt 0:00:19][%csl LRa8,LRe6]} Bxa2 {[%emt 0:05:30]} 21. Rxb2 {[%emt 0:00:27]} (21. Nxa8 $14 {was preferrable.} Bxb1 22. Rxb1 Rxa8 23. exf5) 21... Nxb2 $11 {[%emt 0:00:00]} 22. Nxa8 {[%emt 0:00:03]} Rxa8 {[%emt 0:00:00]} 23. Re2 {[%emt 0:00:49]} Rd8 $1 {[%emt 0:00:00]} 24. h4 {[%emt 0:07:07]} Rd1+ {[%emt 0:00:00]} 25. Kh2 {[%emt 0:00:05]} Rb1 {[%emt 0:00:00] ...Bc4 would now be deadly.} 26. exf5 {[%emt 0:00:15]} gxf5 {[%emt 0:00:00]} 27. Re7 {[%emt 0:02:22]} Nd3 {[%emt 0:00:00]} 28. Bh6 {[%emt 0:00:46]} (28. Be3 $1 $11) 28... Nxf2 $17 {[%emt 0:00:00]} 29. Bf3 {[%emt 0:01:02][%cal Oe7e2]} Ng4+ {[%emt 0:00:00]} 30. Bxg4 fxg4 {[%emt 0:00:00][%mdl 4096] Endgame. KRB-KRB} 31. Rg7+ {[%emt 0:00:18]} Kf8 {[%emt 0:00:00] And now ...Rb6 would win.} 32. Rxb7+ {[%emt 0:01:20]} Ke8 {[%emt 0:00:00]} 33. Rxb1 {[%emt 0:00:13]} Bxb1 {[%emt 0:00:00] KB-KB} 34. Be3 {[%emt 0:00:02]} Kd7 {[%emt 0:00:00] Hoping for ...Kc6.} 35. Bxc5 {[%emt 0:00:07]} a5 {[%emt 0:00:00]} 36. Kg2 {[%emt 0:00:17]} Kc6 {[%emt 0:00:00]} 37. Bf8 {[%emt 0:00:26]} Kd5 {[%emt 0:00:00]} 38. Kf2 {[%emt 0:00:05]} Kd4 {[%emt 0:00:00]} 39. Be7 {[%emt 0:00:22]} Kd3 {[%emt 0:00:00]} 40. Bf8 {[%emt 0:00:20]} a4 {[%emt 0:00:00]} 41. Be7 {[%emt 0:01:08]} Bc2 {[%emt 0:00:00]} 42. Bf8 {[%emt 0:00:05]} Bb3 {[%emt 0:00:00]} 43. Be7 {[%emt 0:00:18]} Kd2 {[%emt 0:00:00]} 44. Bf8 {[%emt 0:00:32]} Bf7 {[%emt 0:00:00]} 45. Be7 {[%emt 0:00:32]} Kc3 {[%emt 0:00:00]} 46. Ke3 {[%emt 0:00:05]} Kb2 {[%emt 0:00:00] White must now prevent ...a3.} 47. Kf4 $2 {[%emt 0:00:21][%mdl 8192] [#] Loses the game.} (47. Bf6+ $17 Kb3 48. Kd2) 47... h5 $1 {[%emt 0:00:00] Black mates.} 48. Kg5 {[%emt 0:00:15]} a3 {[%emt 0:00:00]} 49. Kh6 {[%emt 0:00:18]} a2 {[%emt 0:00:00]} 50. Kg7 {[%emt 0:00:09]} Be8 {[%emt 0:00:00]} ({Weaker is} 50... a1=B 51. Bf6+ (51. Kxf7 Kc2 $11) 51... Kc2 52. Bxa1 $11) 51. Kf8 {[%emt 0:00:30]} Bc6 {[%emt 0:00:00]} ({Not} 51... a1=B 52. Bf6+ Kc2 53. Bxa1 $14) 52. Bf6+ {[%emt 0:02:01]} Kb1 {[%emt 0:00:00]} 53. Ke7 {[%emt 0:02:23]} a1=Q {[%emt 0:00:00]} 54. Bxa1 {[%emt 0:00:04]} Kxa1 {[%emt 0:00:00] Weighted Error Value: White=0.25 (precise) /Black=0.06 (flawless) .  Loses game:     	White=1     	---        Mistake:       	White=3     	Black=2      Inaccurate:     	White=2     	---        OK:         	White=9     	Black=19     Best:        	White=5     	Black=4      Strong:       	---       	Black=2} 0-1

[Event "Chinese Championship-B Women 2024"]
[Site "Liaocheng"]
[Date "2024.04.25"]
[Round "9.9"]
[White "Zhou, Lanqier"]
[Black "Guo, Weibao"]
[Result "0-1"]
[ECO "D30"]
[WhiteElo "1654"]
[BlackElo "1954"]
[Annotator "NA RC"]
[PlyCount "68"]
[EventDate "2024.04.24"]
[EventType "swiss"]
[EventCountry "CHN"]
[SourceTitle "playchess.com"]
[Source "ChessBase"]
[SourceQuality "1"]
[TimeControl "5400+30"]

1. d4 {[%emt 0:00:02]} d5 {[%emt 0:00:23]} 2. c4 {[%emt 0:00:06]} e6 {[%emt 0:00:04]} 3. Nf3 {[%emt 0:00:05]} Bb4+ {[%emt 0:01:03]} 4. Bd2 {[%emt 0:00:45]} a5 {[%emt 0:00:05]} 5. e3 {[%emt 0:02:06]} Nf6 {[%emt 0:00:18]} 6. c5 {[%emt 0:08:13] D30: Queen's Gambit Declined: Systems without Nc3.} Bxd2+ {[%emt 0:08:54]} 7. Nbxd2 {[%emt 0:00:13]} O-O {[%emt 0:01:40]} 8. Ne5 {[%emt 0:09:00]} Nfd7 {[%emt 1:22:03]} 9. Qc2 {[%emt 0:08:06]} Nxe5 {[%emt 0:00:00]} 10. dxe5 {[%emt 0:00:06]} Nc6 {[%emt 0:00:00]} 11. Nf3 {[%emt 0:00:57]} f6 {[%emt 0:00:00]} 12. exf6 $1 {[%emt 0:03:03]} Qxf6 {[%emt 0:00:00]} 13. Bb5 {[%emt 0:06:30]} Nb4 {[%emt 0:00:00]} 14. Qd2 {[%emt 0:00:24]} Qg6 {[%emt 0:00:00]} 15. Kf1 {[%emt 0:07:52]} b6 {[%emt 0:00:00]} 16. a3 {[%emt 0:08:46]} Na6 {[%emt 0:00:00]} 17. cxb6 {[%emt 0:02:31]} Nc5 $1 {[%emt 0:00:00]} 18. Rd1 {[%emt 0:02:33] [#]} (18. Qd1 $15 {should be considered.}) 18... cxb6 {[%emt 0:00:00]} (18... Rb8 $1 $17 19. Qc3 (19. Qxa5 Rxb6 20. a4 Qf6 $17) 19... Ne4 (19... cxb6 20. h4 $11) 20. Qxc7 (20. Qxa5 Rxb6 21. h3 Qf6 $19) 20... Rb7) 19. h4 {[%emt 0:02:17]} Qh5 $11 {[%emt 0:00:00]} 20. Qe2 {[%emt 0:08:51]} Ne4 {[%emt 0:00:00]} 21. Bd3 {[%emt 0:01:04]} Bb7 {[%emt 0:00:00]} 22. Rg1 {[%emt 0:07:38]} Qg4 {[%emt 0:00:00]} 23. Ke1 {[%emt 0:00:47]} Rac8 {[%emt 0:00:00]} 24. Bxe4 {[%emt 0:04:21]} Qxe4 {[%emt 0:00:00]} 25. Qd3 {[%emt 0:00:38]} Rc2 {[%emt 0:00:00]} 26. Qxe4 {[%emt 0:06:12]} dxe4 {[%emt 0:00:00]} 27. Nd2 {[%emt 0:02:43]} Rxb2 {[%emt 0:00:00]} 28. Rb1 {[%emt 0:00:36]} Rxb1+ {[%emt 0:00:00]} 29. Nxb1 {[%emt 0:00:05]} Ba6 {[%emt 0:00:00]} 30. Nd2 {[%emt 0:01:23]} Bd3 {[%emt 0:00:00]} 31. f3 {[%emt 0:00:42]} Rc8 {[%emt 0:00:00]} 32. Kf2 {[%emt 0:05:33]} Rc2 {[%emt 0:00:00]} 33. Rd1 {[%emt 0:00:16]} Ra2 {[%emt 0:00:00]} 34. Kg3 {[%emt 0:00:08]} Be2 {[%emt 0:00:00]} 0-1

[Event "Chinese Championship-B Women 2024"]
[Site "Liaocheng"]
[Date "2024.04.25"]
[Round "9.10"]
[White "Zhao, Chenyu"]
[Black "Wang, Jingyan"]
[Result "1-0"]
[ECO "C07"]
[WhiteElo "1909"]
[BlackElo "1632"]
[Annotator "TA"]
[PlyCount "53"]
[EventDate "2024.04.24"]
[EventType "swiss"]
[EventCountry "CHN"]
[SourceTitle "playchess.com"]
[Source "ChessBase"]
[SourceQuality "1"]
[TimeControl "5400+30"]

{[%evp 12,53,-24,-20,-9,-13,-4,-21,-20,-25,-35,-37,-31,-49,-31,-64,-9,-25,-22,-33,0,0,143,197,316,214,327,317,377,252,547,381,873,941,966,977,962,952,917,856,29981,29982,29990,29988]} 1. e4 {[%emt 0:00:02]} e6 {[%emt 0:00:10]} 2. d4 {[%emt 0:00:03]} d5 {[%emt 0:00:05]} 3. Nd2 {[%emt 1:31:55]} c5 {[%emt 0:00:12]} 4. Ngf3 {[%emt 0:00:30]} Nc6 {[%emt 0:01:03]} 5. Bb5 {[%emt 0:00:30]} a6 6. Bxc6+ {[%emt 0:00:00]} bxc6 {[%emt 0:01:44]} 7. O-O {[%emt 0:00:00]} Nf6 {[%emt 0:01:46]} 8. Re1 {[%emt 0:00:00]} Be7 {[%emt 0:01:37]} 9. c4 {[%emt 0:00:00]} O-O {[%emt 0:02:02] The position is equal.} 10. e5 {[%emt 0:00:00]} Nd7 {[%emt 1:26:51]} 11. cxd5 {[%emt 0:00:00]} cxd5 {[%emt 0:00:00]} 12. b3 {[%emt 0:00:00]} Bb7 {[%emt 0:00:00]} 13. Bb2 {[%emt 0:00:00]} Nb6 {[%emt 0:00:00]} ({Black should play} 13... a5 $15) 14. dxc5 {[%emt 0:00:00]} Bxc5 {[%emt 0:00:00]} 15. Nd4 {[%emt 0:00:00]} Bb4 {[%emt 0:00:00]} 16. Re3 {[%emt 0:05:30]} Bxd2 {[%emt 0:00:00]} (16... Nd7 $11 {remains equal.}) 17. Qxd2 $16 {[%emt 0:00:00]} Qg5 {[%emt 0:00:00] Black is weak on the dark squares} (17... Nc8 {was worth a try.} 18. Rg3 Ne7) 18. Qe2 {[%emt 0:00:00]} Rae8 {[%emt 0:00:00]} (18... Nd7 $142 19. Rg3 Qe7 (19... Qxe5 $2 {loses.} 20. Nc6 $18)) 19. Ba3 $18 {[%emt 0:00:00]} Qf4 {[%emt 0:00:00]} 20. Bxf8 {[%emt 0:00:00]} Kxf8 {[%emt 0:00:00]} (20... Qxd4 21. Rd1 Qf4) 21. Rd1 {[%emt 0:00:00]} Rc8 $2 {[%emt 0:00:00] [#]} (21... Kg8 22. Rc3 Na8) 22. Nxe6+ $1 {[%emt 0:00:00][%mdl 512]} fxe6 {[%emt 0:00:00]} 23. Rf3 {[%emt 0:00:00]} Qxf3 {[%emt 0:00:00]} 24. Qxf3+ {[%emt 0:00:00]} Ke7 {[%emt 0:00:00]} 25. Qg4 {[%emt 0:00:00]} Rg8 {[%emt 0:00:00]} 26. Qb4+ {[%emt 0:00:00]} Kd7 {[%emt 0:00:00]} 27. Qxb6 {[%emt 0:00:00] Weighted Error Value: White=0.32/Black=1.08.  Mistake:       	---       	Black=6      Inaccurate:     	White=4     	Black=1      OK:         	White=6     	Black=2      Best:        	---       	Black=1} 1-0

[Event "Chinese Championship-B Women 2024"]
[Site "Liaocheng"]
[Date "2024.04.25"]
[Round "9.11"]
[White "Sun, Jihan"]
[Black "Gao, Muziyan"]
[Result "0-1"]
[ECO "B88"]
[WhiteElo "1781"]
[BlackElo "1891"]
[Annotator "NA RC"]
[PlyCount "87"]
[EventDate "2024.04.24"]
[EventType "swiss"]
[EventCountry "CHN"]
[SourceTitle "playchess.com"]
[Source "ChessBase"]
[SourceQuality "1"]
[TimeControl "5400+30"]

{[%evp 18,87,41,32767,32767,32767,32767,32767,62,17,78,30,30,28,32767,9,23,36,69,0,0,-33,32767,32767,32767,32767,32767,32767,32767,32767,32767,32767,32767,32767,32767,32767,32767,32767,32767,32767,32767,32767,32767,32767,0,-15,0,0,6,0,0,-6,0,-90,-77,-53,-87,-110,0,32767,32767,-493,-459,-453,-604,-541,-620,-616,-13,-215,-29979,-6283]} 1. e4 {[%emt 0:00:02]} c5 {[%emt 0:00:42]} 2. Nf3 {[%emt 0:00:06]} Nc6 {[%emt 0:00:26]} 3. d4 {[%emt 0:00:07]} cxd4 {[%emt 0:00:08]} 4. Nxd4 {[%emt 0:00:04]} Nf6 {[%emt 0:00:23]} 5. Nc3 {[%emt 0:00:04]} d6 {[%emt 0:00:19]} 6. Bc4 {[%emt 0:00:07]} e6 {[%emt 0:00:53]} 7. Be3 {[%emt 0:00:05]} a6 {[%emt 0:00:15]} 8. O-O {[%emt 0:04:43]} Qc7 {[%emt 0:01:25]} 9. Bb3 {[%emt 0:00:47]} Bd7 {[%emt 0:09:59] B88: Sicilian: Sozin Attack.} (9... Na5 $11) 10. f4 {[%emt 0:02:19]} Be7 {[%emt 0:02:23]} 11. f5 {[%emt 1:27:36]} Nxd4 {[%emt 0:10:46]} 12. Bxd4 {[%emt 0:00:00]} b5 {[%emt 0:03:32]} 13. a3 {[%emt 0:00:00]} Rc8 {[%emt 0:09:19]} (13... O-O $14) 14. Qd3 {[%emt 0:00:00]} ({Better is} 14. fxe6 $16 Bxe6 (14... fxe6 15. Qd3 $16) 15. Nd5 Bxd5 16. exd5 (16. Bxd5 Nxd5 17. exd5 O-O $14)) 14... e5 {[%emt 0:12:50]} 15. Bf2 {[%emt 0:00:00]} Bc6 {[%emt 0:02:55]} 16. Kh1 {[%emt 0:00:00]} Qb7 {[%emt 0:02:02]} 17. Rae1 {[%emt 0:00:00]} a5 {[%emt 0:02:21]} 18. Nd5 {[%emt 0:00:00]} ({Better is} 18. Bh4 $14) 18... Bxd5 {[%emt 0:04:00]} 19. Bxd5 {[%emt 0:00:00]} Nxd5 {[%emt 0:07:06]} 20. exd5 {[%emt 0:00:00]} O-O {[%emt 0:01:51]} 21. Re4 {[%emt 0:00:00]} Rc4 {[%emt 0:03:02]} 22. Rxc4 {[%emt 0:00:00]} bxc4 {[%emt 0:00:02]} 23. Qxc4 {[%emt 0:00:00]} Qxb2 {[%emt 0:00:13]} 24. a4 {[%emt 0:00:00]} Qb7 {[%emt 0:08:08]} 25. Qb5 {[%emt 0:00:00]} Qc7 {[%emt 0:00:38]} 26. Bb6 {[%emt 0:00:00]} Qxc2 {[%emt 0:00:23]} 27. Qxa5 {[%emt 0:03:16]} e4 {[%emt 0:03:25]} 28. Qb4 {[%emt 0:01:04]} Rc8 {[%emt 0:01:29]} 29. a5 {[%emt 0:01:27]} h5 {[%emt 0:05:03]} 30. Re1 {[%emt 0:02:20]} Rc4 {[%emt 0:02:38]} (30... Bg5 $1 $15 31. Rg1 (31. Qxd6 $2 {is the wrong capture.} Qd2 $19) (31. Rxe4 $2 Bd2 $19) (31. Qxe4 Qxe4 32. Rxe4 Rc1+ 33. Bg1 Ra1 $17) 31... e3) 31. Qb1 {[%emt 0:00:02]} Qa4 {[%emt 0:00:18]} 32. Qd1 {[%emt 0:00:13]} Qb5 {[%emt 0:01:41]} 33. h3 {[%emt 0:02:06]} Bf6 {[%emt 0:00:39]} 34. Qxh5 {[%emt 0:01:02]} Qxd5 {[%emt 0:06:16]} 35. Rd1 {[%emt 0:00:30]} (35. Rb1 $11) 35... Qc6 {[%emt 0:00:00]} 36. Be3 {[%emt 0:00:00]} (36. Bg1 $17) 36... d5 {[%emt 0:00:00]} 37. Rb1 {[%emt 0:00:16]} Be5 {[%emt 0:00:00]} (37... Qa6 $15 38. Qg4 Rc8 (38... Qxa5 $2 {loses.} 39. Rb8+ Bd8 40. Bh6 $18)) 38. f6 {[%emt 0:00:43]} Qxf6 {[%emt 0:02:00]} 39. Bg5 $2 {[%emt 0:01:01]} (39. a6 $1 $15 g6 40. a7 gxh5 41. a8=Q+ Kg7 42. Qxd5) 39... Qf2 {[%emt 0:00:30]} 40. Be3 {[%emt 0:00:00]} Qg3 {[%emt 0:00:00]} ({Stronger than} 40... Qxe3 41. Qxe5 Rc1+ 42. Rxc1 Qxc1+ 43. Kh2 $15) 41. Bg1 {[%emt 0:00:01]} Rc2 {[%emt 0:01:00]} 42. Qg4 {[%emt 0:00:57]} Rxg2 $2 {[%emt 0:00:00]} (42... Qxg4 $19 43. hxg4 d4) 43. Qc8+ $19 {[%emt 0:01:02]} (43. Qxg3 $11 {and White is okay.} Rxg3 44. a6) 43... Kh7 {[%emt 0:01:00]} 44. Qf5+ {[%emt 0:00:00]} 0-1

[Event "Chinese Championship-B Women 2024"]
[Site "Liaocheng"]
[Date "2024.04.25"]
[Round "9.12"]
[White "Xu, Mingwei"]
[Black "Wang, Xiangyi"]
[Result "1-0"]
[ECO "B10"]
[WhiteElo "2037"]
[BlackElo "1540"]
[Annotator "NA RC"]
[PlyCount "129"]
[EventDate "2024.04.24"]
[EventType "swiss"]
[EventCountry "CHN"]
[SourceTitle "playchess.com"]
[Source "ChessBase"]
[SourceQuality "1"]
[TimeControl "5400+30"]

1. e4 {[%emt 0:00:39]} c6 {[%emt 0:00:06]} 2. Nf3 {[%emt 0:00:11]} d5 {[%emt 0:00:08]} 3. d3 {[%emt 0:00:03]} Bg4 {[%emt 0:01:58]} 4. h3 {[%emt 0:01:05]} Bh5 {[%emt 0:00:09]} 5. g4 {[%emt 0:00:45]} Bg6 {[%emt 0:00:20]} 6. Nc3 {[%emt 0:00:11] B10: Caro-Kann: 2 d3 and 2 c4.} dxe4 {[%emt 0:07:57]} 7. dxe4 {[%emt 0:09:17]} Qxd1+ {[%emt 0:05:36]} 8. Kxd1 {[%emt 0:00:05]} Nf6 {[%emt 0:00:28]} 9. Bd3 {[%emt 0:00:06]} h6 {[%emt 0:02:50]} 10. Be3 {[%emt 0:03:33]} Nbd7 {[%emt 1:15:58]} 11. e5 {[%emt 0:11:48]} Bxd3 {[%emt 0:00:00]} 12. cxd3 {[%emt 0:00:15]} Ng8 {[%emt 0:00:00]} 13. Ke2 {[%emt 0:01:53]} e6 {[%emt 0:00:00]} 14. Ne4 {[%emt 0:00:25]} Be7 {[%emt 0:00:00]} (14... f5 $14) 15. Rac1 {[%emt 0:10:10]} O-O-O {[%emt 0:00:00]} ({Better is} 15... f6) 16. d4 {[%emt 0:20:09]} Nb6 {[%emt 0:00:00]} 17. Nfd2 {[%emt 0:03:28]} Nd5 {[%emt 0:00:00]} (17... h5 $14) 18. Nc4 {[%emt 0:01:25]} Kc7 {[%emt 0:00:00]} 19. f4 {[%emt 0:03:41]} (19. h4 $16) 19... Nxe3 (19... g6 $14) 20. Kxe3 {[%emt 0:00:08]} Rd7 {[%emt 0:00:00]} 21. Rhf1 {[%emt 0:01:02]} Bf8 {[%emt 0:00:00]} 22. Ned6 {[%emt 0:09:27]} Bxd6 {[%emt 0:00:00]} 23. exd6+ {[%emt 0:00:52]} Rxd6 {[%emt 0:00:00]} 24. Nxd6 {[%emt 0:00:05]} Kxd6 {[%emt 0:00:00]} 25. f5 {[%emt 0:04:11]} Nf6 {[%emt 0:00:00]} 26. a3 {[%emt 0:01:47]} Re8 {[%emt 0:00:00]} 27. Kd3 {[%emt 0:00:35]} Rd8 {[%emt 0:00:00]} 28. Rce1 {[%emt 0:01:02]} c5 {[%emt 0:00:00]} 29. dxc5+ {[%emt 0:00:40]} Kxc5+ {[%emt 0:00:00]} 30. Kc2 {[%emt 0:00:05]} exf5 {[%emt 0:00:00]} 31. Rxf5+ {[%emt 0:00:06]} Kc6 {[%emt 0:00:00]} 32. Kb1 {[%emt 0:04:22]} Rd7 {[%emt 0:00:00]} 33. Rc1+ {[%emt 0:01:14]} Kb6 {[%emt 0:00:00]} 34. Rc3 {[%emt 0:00:52]} Ne4 {[%emt 0:00:00]} 35. Rb3+ {[%emt 0:02:09]} Kc6 {[%emt 0:00:00]} 36. Rb4 {[%emt 0:00:16]} Nf6 {[%emt 0:00:00]} 37. a4 {[%emt 0:00:52]} a6 {[%emt 0:00:00]} 38. Rc4+ {[%emt 0:02:01]} Kb6 {[%emt 0:01:10]} (38... Kd6 $142 39. Rd4+ Ke6 40. Rxd7 Kxd7) 39. Rb4+ {[%emt 0:00:49]} Kc6 $1 {[%emt 0:00:09]} 40. Rf1 {[%emt 0:01:00]} b5 {[%emt 0:03:39]} 41. a5 {[%emt 0:00:23]} Kc5 {[%emt 0:00:34]} 42. Rbf4 {[%emt 0:00:21]} Kc6 {[%emt 0:02:41]} 43. h4 {[%emt 0:01:00]} Rd5 {[%emt 0:04:09]} 44. Rc1+ {[%emt 0:01:53]} Kd7 {[%emt 0:01:24]} 45. Rf5 {[%emt 0:00:27]} Rd4 {[%emt 0:00:54]} 46. g5 {[%emt 0:00:50]} hxg5 $18 {[%emt 0:00:32]} 47. hxg5 {[%emt 0:00:02]} Ke6 {[%emt 0:01:27]} 48. Rff1 {[%emt 0:05:09]} Ne4 {[%emt 0:00:21]} 49. Rg1 {[%emt 0:00:34]} Rd6 {[%emt 0:00:52]} 50. Rce1 {[%emt 0:00:17]} Kd5 {[%emt 0:00:28]} 51. Rd1+ {[%emt 0:00:07]} Ke5 {[%emt 0:00:07]} 52. Rxd6 {[%emt 0:00:06]} Nxd6 {[%emt 0:00:06]} 53. Kc2 {[%emt 0:00:43]} f5 {[%emt 0:00:30]} 54. gxf6 {[%emt 0:00:16]} gxf6 {[%emt 0:00:06]} 55. Re1+ {[%emt 0:00:12]} Kd5 {[%emt 0:00:36]} 56. Re7 {[%emt 0:00:46]} Nc4 {[%emt 0:00:22]} 57. b4 {[%emt 0:00:15]} Ne5 {[%emt 0:00:07]} 58. Kc3 {[%emt 0:01:02]} Nc6 {[%emt 0:00:16]} 59. Re8 {[%emt 0:00:51]} f5 {[%emt 0:00:54]} 60. Ra8 {[%emt 0:01:01]} f4 {[%emt 0:00:25]} 61. Rxa6 {[%emt 0:00:07]} Nd4 {[%emt 0:01:31]} 62. Rf6 {[%emt 0:00:16]} f3 {[%emt 0:00:29]} 63. a6 {[%emt 0:00:28]} Ne6 {[%emt 0:00:57]} 64. Rxe6 {[%emt 0:00:57]} Kxe6 {[%emt 0:00:20]} 65. Kd2 {[%emt 0:00:04]} 1-0